[Event "84th Armenian-HL-ch 2024"]
[Site "Yerevan"]
[Date "2024.01.16"]
[Round "5.3"]
[White "Davtyan, Artur"]
[Black "Ter-Sahakyan, Samvel"]
[Result "0-1"]
[ECO "D02"]
[WhiteElo "2477"]
[BlackElo "2649"]
[Annotator "TA"]
[PlyCount "128"]
[EventDate "2024.01.11"]
[EventType "tourn"]
[EventCountry "ARM"]
[SourceTitle "playchess.com"]
[Source "ChessBase"]
[SourceQuality "1"]
[TimeControl "40/5400+30:1800+30"]

{[%evp 11,128,2,30,0,0,0,-3,-7,0,8,0,-9,-10,-14,-10,-10,-10,-8,0,-12,0,-8,8,14,15,13,16,0,14,0,18,-47,-33,-170,-138,-200,-196,-196,-187,-224,-224,-224,-224,-241,-235,-276,-275,-266,-226,-254,-189,-191,-160,-162,-156,-177,-184,-189,-177,-218,-169,-166,-162,-152,-116,-120,-119,-162,-110,-150,-129,-158,-165,-153,-136,-225,-225,-225,-225,-225,-225,-234,-220,-214,-222,-346,-338,-346,-346,-340,-333,-344,-332,-325,-311,-280,-254,-1143,-1085,-613,-581,-1170,-876,-4694,-4694,-12844,-12844,-12845,-12845,-12845,-12845,-12845,-12846,-12846,-12846,-12846,-12847,-12847,-12847]} 1. d4 {[%emt 0:08:26]} Nf6 {[%emt 0:00:10]} 2. Nf3 {[%emt 0:00:07]} d5 {[%emt 0:00:15]} 3. Bf4 {[%emt 0:00:05]} c5 {[%emt 0:05:19]} 4. e3 {[%emt 0:00:19]} Nc6 {[%emt 0:00:07]} 5. Nbd2 {[%emt 0:00:08]} e6 {[%emt 0:00:25]} 6. c3 {[%emt 0:01:14]} cxd4 {[%emt 0:00:11]} 7. cxd4 {[%emt 0:23:08] D02: 1 d4 d5 2 Nf3 sidelines, including 2...Nf6 3 g3 and 2...Nf6 3 Bf4.} Qb6 {[%emt 0:10:41] 7...Nh5 is becoming the main line.} 8. Qb3 {[%emt 0:07:04]} Qxb3 {[%emt 0:06:28]} 9. Nxb3 {[%emt 0:00:06] The position is equal.} Bb4+ {[%emt 0:05:08]} 10. Nbd2 {[%emt 0:02:38]} Nh5 {[%emt 0:00:34] [#]} 11. Bc7 $146 {[%emt 0:12:03]} ({Predecessor:} 11. Bg5 h6 12. Bh4 g5 13. Bg3 Bd7 14. a3 Be7 15. b4 Rc8 16. Rc1 O-O 17. Be2 Nxg3 18. hxg3 Nxd4 19. Rxc8 Nxf3+ 20. Nxf3 Rxc8 {0-1 Turzo,A (2303)-Alekseev,E (2626) Titled Tuesday intern op 15th Sept blitz 2020 (4)}) 11... Kd7 {[%emt 0:00:58]} 12. Bg3 {[%emt 0:00:54]} Nxg3 {[%emt 0:02:59]} 13. hxg3 {[%emt 0:00:02]} Ke7 {[%emt 0:00:22]} 14. g4 {[%emt 0:16:08]} Bd7 {[%emt 0:09:10]} 15. g5 {[%emt 0:00:11]} Bd6 {[%emt 0:00:14]} 16. a3 {[%emt 0:00:18]} e5 {[%emt 0:01:19]} 17. dxe5 {[%emt 0:10:17]} Nxe5 {[%emt 0:00:25][%cal Bc6e5,Be5c4,Bc4b2][%mdl 32]} 18. Nd4 {[%emt 0:00:07]} Rac8 {[%emt 0:02:50][%cal Ba8c8,Bc8c1,Bc1h1][%mdl 32]} 19. N2f3 {[%emt 0:00:13]} Nc4 {[%emt 0:14:11]} 20. Rb1 {[%emt 0:04:09]} (20. Bxc4 {simplifies} dxc4 21. Ne2 h6 22. gxh6 Rxh6 23. Rxh6 gxh6 24. Kd2) 20... g6 {[%emt 0:01:01]} 21. Bd3 {[%emt 0:02:56]} (21. Bxc4 $11 dxc4 22. Rh4) 21... Nxb2 $1 $15 {[%emt 0:04:52][%mdl 64] [#] Deflection} 22. Rxb2 {[%emt 0:00:28]} ({White should play} 22. Bb5 $15) 22... Rc1+ $19 {[%emt 0:00:27]} 23. Kd2 {[%emt 0:00:02]} (23. Ke2 $17 {might work better.} Rxh1 24. Rxb7) 23... Rxh1 {[%emt 0:00:22]} 24. Rxb7 {[%emt 0:00:02]} Rc8 {[%emt 0:03:56]} (24... Bxa3 $2 25. Ne5 Rc8 26. Nxd7 $18) 25. Rxa7 {[%emt 0:02:07]} Ra1 {[%emt 0:04:00]} 26. Nc2 {[%emt 0:01:17]} Ra2 {[%emt 0:01:41]} 27. Ra5 {[%emt 0:00:04] [#]} Bxa3 $1 {[%emt 0:10:35][%mdl 512]} 28. Kd1 {[%emt 0:05:17]} (28. Rxa3 Rcxc2+) 28... Rc3 {[%emt 0:01:55]} 29. Nfe1 {[%emt 0:00:11]} Be6 {[%emt 0:02:08]} 30. Ra6 {[%emt 0:02:29]} d4 {[%emt 0:03:41]} 31. exd4 {[%emt 0:00:23]} Bd6 {[%emt 0:01:34]} 32. Rxa2 {[%emt 0:00:05]} Bxa2 {[%emt 0:00:03]} 33. g3 {[%emt 0:00:07] Against Bf4} Bc7 {[%emt 0:01:54]} 34. Ke2 {[%emt 0:03:14]} Bb6 {[%emt 0:00:55]} 35. Nf3 {[%emt 0:00:03]} Bd5 {[%emt 0:02:16] ...Bxf3+ would be deadly.} 36. Nd2 {[%emt 0:00:24]} Rc8 {[%emt 0:00:51]} 37. Ke3 {[%emt 0:01:06]} Rd8 {[%emt 0:01:21] Black is much more active.} 38. Be4 {[%emt 0:00:04]} Be6 {[%emt 0:01:35]} 39. Nf3 {[%emt 0:00:04]} Kd6 {[%emt 0:01:20]} (39... Rc8 $19 40. Kd3 f5 41. gxf6+ Kxf6) 40. Ne5 {[%emt 0:00:00]} Rc8 {[%emt 0:00:00]} 41. Nb4 {[%emt 0:02:34]} Rc3+ {[%emt 0:04:01]} 42. Nbd3 {[%emt 0:00:11]} Ra3 {[%emt 0:00:57]} 43. Nc6 {[%emt 0:02:48]} (43. Bc6 $17) 43... Bc4 {[%emt 0:06:23] Threatens to win with ...Bxd3.} 44. Nce5 {[%emt 0:01:01]} Bxd3 {[%emt 0:02:04]} 45. Nxd3 {[%emt 0:08:29][%mdl 4096] Endgame KRB-KBN} Ra4 {[%emt 0:00:17]} 46. f4 {[%emt 0:00:11]} Bxd4+ {[%emt 0:03:04]} 47. Kf3 {[%emt 0:01:03]} Ra3 {[%emt 0:01:41][%cal Oh7h6]} 48. g4 {[%emt 0:13:30]} (48. Ke2 $142) 48... Ra2 {[%emt 0:01:36]} 49. Kg3 {[%emt 0:00:05]} Re2 {[%emt 0:02:39]} 50. Bf3 {[%emt 0:00:06]} Re8 {[%emt 0:04:37]} ({Don't go for} 50... Re3 $2 51. Nf2) 51. Kg2 {[%emt 0:00:28]} Kc7 {[%emt 0:00:18]} 52. Nb4 {[%emt 0:07:26]} Kb6 {[%emt 0:00:59]} 53. Nd3 {[%emt 0:00:36]} Kb5 {[%emt 0:01:11]} 54. Bd5 $2 {[%emt 0:00:01]} (54. Nf2) 54... Re3 {[%emt 0:01:32] Black is clearly winning.} 55. Nc1 {[%emt 0:00:05]} Bb2 {[%emt 0:01:45]} 56. Nb3 {[%emt 0:01:23]} Kb4 {[%emt 0:00:24]} 57. Bxf7 {[%emt 0:00:07]} Rxb3 {[%emt 0:00:04]} 58. Bxb3 {[%emt 0:00:07]} Kxb3 {[%emt 0:00:02] KB-K3P} 59. Kf3 {[%emt 0:00:15]} Kc4 {[%emt 0:00:04]} 60. Ke4 {[%emt 0:00:02]} Kc5 {[%emt 0:00:13]} 61. f5 {[%emt 0:00:06]} Kd6 {[%emt 0:00:14]} 62. Kf3 {[%emt 0:00:13]} Ke5 {[%emt 0:00:20]} 63. Kg3 {[%emt 0:00:02]} Bc1 {[%emt 0:00:14]} 64. Kh4 {[%emt 0:00:04]} Bd2 {[%emt 0:00:07] Weighted Error Value: White=0.51/Black=0.08 (flawless)} ({Weaker is} 64... gxf5 65. gxf5 Kf4 66. g6 hxg6 67. fxg6 $11) 0-1

[Event "84th Armenian-HL-ch 2024"]
[Site "Yerevan"]
[Date "2024.01.16"]
[Round "5.4"]
[White "Andriasian, Zaven"]
[Black "Harutyunyan, Tigran K."]
[Result "1-0"]
[ECO "C54"]
[WhiteElo "2581"]
[BlackElo "2523"]
[Annotator "TA"]
[PlyCount "57"]
[EventDate "2024.01.11"]
[EventType "tourn"]
[EventCountry "ARM"]
[SourceTitle "playchess.com"]
[Source "ChessBase"]
[SourceQuality "1"]
[TimeControl "40/5400+30:1800+30"]

{[%evp 12,57,15,12,13,0,21,0,8,0,43,29,32,7,44,25,35,35,37,31,41,44,80,71,64,69,54,64,170,162,251,250,513,497,818,810,793,782,862,858,831,802,947,944,943,943,936,928]} 1. e4 {[%emt 0:00:04]} e5 {[%emt 0:00:17]} 2. Nf3 {[%emt 0:00:09]} Nc6 {[%emt 0:00:13]} 3. Bc4 {[%emt 0:00:10]} Bc5 {[%emt 0:00:16]} 4. d3 {[%emt 0:00:21]} Nf6 {[%emt 0:00:10]} 5. Nbd2 {[%emt 0:00:15]} O-O {[%emt 0:00:29]} 6. O-O {[%emt 0:00:15]} d6 {[%emt 0:01:36]} 7. c3 {[%emt 0:02:51]} a5 {[%emt 0:00:21] Nowadays more popular than 7...a6. C54: Giuoco Piano: 4 c3 Nf6, main lines with 5 d4 and 5 d3.} 8. Bb3 {[%emt 0:00:20]} Ba7 {[%emt 0:03:01]} 9. h3 {[%emt 0:05:33]} Be6 {[%emt 0:01:47] The position is equal.} 10. Bc2 {[%emt 0:02:33]} Ne7 {[%emt 0:05:30]} 11. Re1 {[%emt 0:10:42]} Ng6 {[%emt 0:01:55]} 12. Nf1 {[%emt 0:00:58]} Nh5 {[%emt 0:13:20]} 13. d4 {[%emt 0:00:20]} Nhf4 {[%emt 0:02:09]} 14. Ng3 {[%emt 0:10:56] [#]} exd4 $146 {[%emt 0:10:43]} ({Predecessor:} 14... Qc8 15. Nf5 Re8 16. g3 Nxh3+ 17. Kg2 d5 18. N3h4 dxe4 19. Bxe4 exd4 20. cxd4 Nxh4+ 21. Nxh4 {0-1 Kleiman,J (2399)-Svane,F (2603) Titled Tuesday intern op 06th Jun Early blitz 2023 (9)}) 15. cxd4 {[%emt 0:01:57]} d5 {[%emt 0:02:13]} 16. e5 {[%emt 0:01:22]} f6 {[%emt 0:03:14] [#]} 17. Bxf4 $1 {[%emt 0:02:58]} Nxf4 {[%emt 0:00:13]} 18. Qd2 {[%emt 0:00:25]} fxe5 {[%emt 0:12:34]} 19. Rxe5 {[%emt 0:00:51] And now Ng5 would win.} g6 {[%emt 0:00:18]} (19... Qf6 $1 $14) 20. Rae1 $18 {[%emt 0:05:59]} (20. Qxa5 $2 {is the wrong capture.} Bxd4 21. Qd2 Bxb2 $19) 20... Qf6 {[%emt 0:01:01]} (20... Qd6 $142) 21. Bf5 {[%emt 0:00:56]} Bxf5 {[%emt 0:03:31]} (21... Nxg2 22. Bxe6+ Kh8) 22. Nxf5 {[%emt 0:03:33] White is clearly winning.} Nxh3+ {[%emt 0:01:53]} (22... Nxg2 23. Kxg2 gxf5 24. Re6 Qg7+ 25. Kh2) (22... gxf5 $142 23. Qxf4 Qd6) 23. gxh3 {[%emt 0:00:48] [#] White wants to mate with Nh6+.} gxf5 {[%emt 0:00:33]} 24. Re6 {[%emt 0:00:47]} ({Less strong is} 24. Qxa5 c6 25. Re6 Qf7 $16) (24. Rxd5 Bb6 $14) 24... Qg7+ {[%emt 0:02:06]} 25. Kh2 {[%emt 0:04:45]} Rf6 {[%emt 0:02:11]} 26. Re7 {[%emt 0:04:00]} Rf7 {[%emt 0:02:29]} 27. Rxf7 {[%emt 0:01:08]} Qxf7 {[%emt 0:00:23]} 28. Rg1+ {[%emt 0:00:11]} Kh8 {[%emt 0:00:28]} 29. Ne5 {[%emt 0:00:05] Weighted Error Value: White=0.05 (flawless) /Black=0.45} 1-0

[Event "84th Armenian-HL-ch 2024"]
[Site "Yerevan"]
[Date "2024.01.16"]
[Round "5.5"]
[White "Tiraturyan, David"]
[Black "Chaqryan, Erik"]
[Result "0-1"]
[ECO "A46"]
[WhiteElo "2258"]
[BlackElo "2308"]
[Annotator "TA"]
[PlyCount "166"]
[EventDate "2024.01.11"]
[EventType "tourn"]
[EventCountry "ARM"]
[SourceTitle "playchess.com"]
[Source "ChessBase"]
[SourceQuality "1"]
[TimeControl "40/5400+30:1800+30"]

{[%evp 10,166,14,-5,6,0,8,0,0,0,0,0,5,0,10,14,19,-16,12,19,70,63,68,30,15,0,4,-28,-24,-22,-26,-45,-27,-84,-81,-105,-102,-100,-100,-105,-105,-103,-99,-134,-106,-112,-106,-108,-101,-118,-85,-81,-84,-86,-88,-102,-104,-100,-106,-95,-97,-93,-95,-100,-106,-146,-119,-122,-86,-85,-80,-82,-82,-87,-81,-90,-77,-77,-65,-86,-70,-70,-58,-70,-58,-58,-58,-68,-54,-54,-39,-39,-39,-39,-39,-68,-54,-54,-14,-15,-8,-56,-32,-32,-17,-58,-58,-71,-80,-105,0,-44,-44,-54,-54,-54,-59,-108,-82,-108,-108,-108,-110,-110,-97,-244,-254,-265,-228,-233,-225,-842,-829,-794,-747,-811,-811,-529,-762,-533,-435,-12845,-12845,-12845,-12846,-12846,-12846,-12846,-12847,-12847,-12848,-12848,-12848,-12849,-12847,-12848,-12848,-27999,-27999]} 1. d4 {[%emt 0:00:25]} Nf6 {[%emt 0:00:25]} 2. Bg5 {[%emt 0:01:11]} e6 {[%emt 0:02:27]} 3. Nf3 {[%emt 0:00:57]} h6 {[%emt 0:04:06]} 4. Bxf6 {[%emt 0:00:41]} Qxf6 {[%emt 0:00:04]} 5. Nbd2 {[%emt 0:00:11]} d6 {[%emt 0:03:23]} 6. e4 {[%emt 0:00:19]} g6 {[%emt 0:08:02] A46: 1 d4 Nf6 2 Nf3 e6: Torre, London and Colle Systems.} 7. Bb5+ {[%emt 0:10:54]} Nd7 {[%emt 0:08:51]} 8. O-O {[%emt 0:12:52]} Bg7 {[%emt 0:04:49] The position is equal.} 9. c3 {[%emt 0:01:33] [#]} e5 $146 {[%emt 0:25:04]} ({Predecessor:} 9... O-O 10. Re1 a6 11. Bd3 Qe7 12. a4 b6 13. Qe2 Bb7 14. Nc4 Rfe8 15. Nfd2 e5 {½-½ Meneses,L (1948)-Farias,E (1873) Teresina-ch 2018 (2.3)}) 10. a4 {[%emt 0:12:13]} O-O {[%emt 0:02:44]} 11. Re1 {[%emt 0:04:46]} a6 {[%emt 0:06:35]} 12. Bd3 {[%emt 0:04:22]} Re8 {[%emt 0:00:43]} 13. Nc4 {[%emt 0:04:17]} Nf8 {[%emt 0:03:55][%cal Re5d4]} 14. Ne3 {[%emt 0:05:25]} c6 {[%emt 0:26:22]} (14... exd4 $11 15. cxd4 (15. Nd5 Qd8 $11) 15... Qd8) 15. d5 $14 {[%emt 0:01:58]} Nh7 {[%emt 0:00:00]} 16. dxc6 {[%emt 0:01:19]} bxc6 {[%emt 0:00:00]} 17. Bc4 {[%emt 0:00:04]} Qe7 {[%emt 0:00:00]} 18. b4 {[%emt 0:04:13]} Nf6 {[%emt 0:00:00]} 19. Qc2 {[%emt 0:00:06]} Bb7 {[%emt 0:00:00]} 20. Red1 {[%emt 0:07:03]} Rad8 {[%emt 0:00:00][%cal Ba8d8,Bd8c8,Bc8c5][%mdl 32]} 21. b5 {[%emt 0:00:39]} (21. Bd3 $11) 21... cxb5 {[%emt 0:00:00]} 22. Nd5 {[%emt 0:00:15]} Bxd5 {[%emt 0:00:00]} 23. Bxd5 {[%emt 0:00:14]} Rc8 {[%emt 0:00:00]} 24. axb5 {[%emt 0:05:51]} axb5 {[%emt 0:00:00]} 25. Qb3 {[%emt 0:00:04]} Rc5 {[%emt 0:00:00]} 26. Ra5 {[%emt 0:00:14]} Rec8 {[%emt 0:00:00] [#] Strongly threatening ...Nxd5.} 27. Rxb5 {[%emt 0:01:35]} Rxc3 {[%emt 0:00:00]} 28. Qb1 {[%emt 0:00:23]} Bf8 {[%emt 0:00:18]} 29. h3 {[%emt 0:04:14]} Nh5 {[%emt 0:01:08][%cal Oc3f3] ...Rxf3! is the strong threat.} 30. Rb7 {[%emt 0:01:55]} R8c7 {[%emt 0:00:11]} 31. Rxc7 {[%emt 0:01:34]} Qxc7 {[%emt 0:00:56]} 32. Nh2 {[%emt 0:01:00]} Nf4 {[%emt 0:00:58]} 33. Qb7 {[%emt 0:00:44]} Qxb7 {[%emt 0:02:32]} 34. Bxb7 {[%emt 0:00:05]} h5 {[%emt 0:01:32] Dodges Ng4} 35. Nf1 {[%emt 0:01:31]} Rb3 {[%emt 0:00:32] Wards off Ne3. Black is more active.} 36. Bc6 {[%emt 0:03:39]} Rb6 {[%emt 0:00:40]} 37. Bd5 {[%emt 0:00:41]} Nxd5 {[%emt 0:01:25]} 38. Rxd5 $17 {[%emt 0:00:05][%mdl 4096] Endgame KRB-KRN} Rb1 {[%emt 0:01:02]} 39. g4 {[%emt 0:01:35]} hxg4 {[%emt 0:00:31]} 40. hxg4 {[%emt 0:00:00]} Re1 {[%emt 0:00:00]} 41. f3 {[%emt 0:00:37]} Be7 {[%emt 0:31:45]} 42. Rd2 {[%emt 0:04:39]} Kf8 {[%emt 0:00:00]} 43. Kg2 {[%emt 0:00:10]} Ke8 {[%emt 0:00:00]} 44. Ng3 {[%emt 0:00:27]} Rc1 {[%emt 0:00:00]} 45. Ne2 {[%emt 0:01:02]} Rc4 {[%emt 0:00:00]} 46. Rd3 {[%emt 0:01:42]} Rc2 {[%emt 0:00:00]} 47. Kf1 {[%emt 0:00:04]} Kd7 {[%emt 0:00:00]} 48. Nc3 {[%emt 0:00:08]} Ke6 {[%emt 0:00:00]} 49. Ke1 {[%emt 0:01:11]} Bh4+ {[%emt 0:00:00]} 50. Kd1 {[%emt 0:00:23]} Rb2 {[%emt 0:00:00]} 51. Rd2 {[%emt 0:01:09]} Rb3 {[%emt 0:00:00]} 52. Rc2 {[%emt 0:01:08]} Bd8 {[%emt 0:01:21]} 53. Ke2 {[%emt 0:01:06]} Bb6 {[%emt 0:00:05]} 54. Nd5 {[%emt 0:00:05]} Bc5 {[%emt 0:00:05]} 55. Rd2 {[%emt 0:00:50]} (55. Ra2 $11) 55... Rb1 {[%emt 0:01:49]} 56. Rd1 {[%emt 0:00:16]} Rb8 {[%emt 0:00:05]} 57. Rd2 {[%emt 0:00:57]} Rh8 {[%emt 0:00:33]} 58. Kf1 {[%emt 0:00:28]} Rh1+ {[%emt 0:00:42]} 59. Ke2 {[%emt 0:03:24]} f6 {[%emt 0:03:18]} ({Better is} 59... f5 $17 60. gxf5+ gxf5) 60. Rd3 {[%emt 0:00:56]} Rh2+ {[%emt 0:00:34]} 61. Kd1 {[%emt 0:00:57]} f5 {[%emt 0:00:23]} 62. gxf5+ {[%emt 0:00:07]} gxf5 {[%emt 0:00:04]} 63. Rd2 {[%emt 0:00:38]} (63. Nc7+ $1 $15 Kd7 64. Nd5) 63... Rh1+ {[%emt 0:00:21]} 64. Ke2 {[%emt 0:00:06]} f4 {[%emt 0:00:46]} 65. Rd3 {[%emt 0:02:13]} Kf7 {[%emt 0:00:44]} 66. Rb3 {[%emt 0:00:27]} Rh2+ {[%emt 0:00:12]} 67. Ke1 {[%emt 0:02:07] [#] This costs White the game.} (67. Kd3 $17 {was forced.}) 67... Kg6 $1 $19 {[%emt 0:01:07]} 68. Ne7+ {[%emt 0:01:35]} Kf6 {[%emt 0:00:18]} 69. Nf5 {[%emt 0:02:12]} d5 $1 {[%emt 0:00:39] Threatens to win with ...Rc2.} 70. Rb5 $2 {[%emt 0:00:03]} (70. Kd1) 70... Rc2 {[%emt 0:00:46]} 71. Kd1 {[%emt 0:00:46]} Rc4 {[%emt 0:00:04]} 72. Nh6 {[%emt 0:00:17]} dxe4 {[%emt 0:00:50]} 73. fxe4 {[%emt 0:00:05]} f3 {[%emt 0:00:40] ...Kg5 would be deadly.} 74. Ng4+ {[%emt 0:00:07]} Ke6 {[%emt 0:00:31] Hoping for ...Rd4+.} 75. Rxc5 {[%emt 0:01:29]} (75. Nh2 $142 f2 76. Nf1) 75... Rxc5 {[%emt 0:00:06] KR-KN} 76. Kd2 {[%emt 0:00:06]} Kd6 {[%emt 0:00:51]} 77. Ke3 {[%emt 0:00:06]} Rc3+ {[%emt 0:00:03]} 78. Kf2 {[%emt 0:00:04]} Rb3 {[%emt 0:00:31]} 79. Ne3 {[%emt 0:01:11]} Kc5 {[%emt 0:00:25]} 80. Nf5 {[%emt 0:00:04]} Kc4 {[%emt 0:00:53]} 81. Kg3 {[%emt 0:00:20]} Rd3 {[%emt 0:00:34]} 82. Kf2 {[%emt 0:00:04]} Rd8 {[%emt 0:00:34]} 83. Kxf3 {[%emt 0:01:24]} Kd3 {[%emt 0:00:05] Weighted Error Value: White=0.12 (very precise) /Black=0.10 (very precise)} 0-1

[Event "84th Armenian-HL-ch 2024"]
[Site "Yerevan"]
[Date "2024.01.17"]
[Round "6.1"]
[White "Tiraturyan, David"]
[Black "Davtyan, Artur"]
[Result "1/2-1/2"]
[ECO "B31"]
[WhiteElo "2258"]
[BlackElo "2477"]
[Annotator "TA"]
[PlyCount "56"]
[EventDate "2024.01.11"]
[EventType "tourn"]
[EventCountry "ARM"]
[SourceTitle "playchess.com"]
[Source "ChessBase"]
[SourceQuality "1"]
[TimeControl "40/5400+30:1800+30"]

{[%evp 11,56,19,22,25,29,12,11,14,9,0,7,0,0,0,0,0,0,0,-5,-22,6,0,7,0,19,25,18,18,32,0,0,0,22,22,27,0,22,23,26,22,37,32,46,40,40,44,31]} 1. e4 {[%emt 0:00:03]} c5 {[%emt 0:03:46]} 2. Nf3 {[%emt 0:00:10]} Nc6 {[%emt 0:00:04]} 3. Bb5 {[%emt 0:00:11]} g6 {[%emt 0:00:05]} 4. Bxc6 {[%emt 0:00:05]} dxc6 {[%emt 0:01:27]} 5. d3 {[%emt 0:00:05]} Bg7 {[%emt 0:00:09]} 6. h3 {[%emt 0:00:04]} e5 {[%emt 0:00:34]} 7. a4 {[%emt 0:00:06] B31: Sicilian: 2...Nc6 3 Bb5 g6.} Qe7 {[%emt 0:00:24]} 8. Na3 {[%emt 0:00:40]} Nf6 {[%emt 0:00:16]} 9. Be3 {[%emt 0:00:47] The position is equal.} Nd7 {[%emt 0:03:14] [#]} 10. Qc1 $146 {[%emt 0:01:03]} ({Predecessor:} 10. Qd2 f6 11. Nh2 Nf8 12. O-O Ne6 13. f4 exf4 14. Bxf4 Nxf4 15. Qxf4 O-O 16. Nc4 {1-0 Ozsakallioglu,O (2330)-Kavri,Y (1965) Istanbul op 2022 (3)}) 10... f6 {[%emt 0:00:27]} 11. Bh6 {[%emt 0:02:32]} Nf8 {[%emt 0:10:03]} 12. Bxg7 {[%emt 0:01:40]} Qxg7 {[%emt 0:00:03]} 13. Nc4 {[%emt 0:00:05]} Qe7 {[%emt 0:00:07]} 14. Ng1 {[%emt 0:03:22]} Be6 {[%emt 0:01:30]} 15. b3 {[%emt 0:01:49]} Nd7 {[%emt 0:06:23]} 16. Qb2 {[%emt 0:03:53]} b6 {[%emt 0:28:30]} 17. Ne2 {[%emt 0:03:47]} O-O {[%emt 0:00:47]} 18. O-O {[%emt 0:03:13]} Bxc4 {[%emt 0:00:57]} 19. bxc4 {[%emt 0:00:04]} a5 {[%emt 0:00:09]} 20. f4 {[%emt 0:06:26]} exf4 {[%emt 0:00:50]} 21. Rxf4 {[%emt 0:00:22]} Rae8 {[%emt 0:01:24]} 22. Raf1 {[%emt 0:00:27]} Qd6 {[%emt 0:00:28]} 23. Kh1 {[%emt 0:01:30]} (23. Qc1 {with more complications.} Kf7 24. R4f2 Ke7 25. Qf4) 23... Re5 {[%emt 0:00:55]} (23... f5 $5 {[%cal Rf5e4]}) 24. Ng1 {[%emt 0:04:21][%cal Be2g1,Bg1f3,Bf3h2][%mdl 32]} Re7 {[%emt 0:12:53]} 25. R4f2 {[%emt 0:01:15]} Rff7 {[%emt 0:03:41]} 26. Nf3 {[%emt 0:01:20] White is slightly better.} Qg3 {[%emt 0:02:16]} 27. Nh2 {[%emt 0:03:00] Ng4 would be deadly.} h5 {[%emt 0:00:11][%cal Of6f5] Repels Ng4} 28. Rf3 {[%emt 0:02:35]} Qd6 {[%emt 0:02:19] Weighted Error Value: White=0.06 (flawless) /Black=0.07 (flawless)} 1/2-1/2

[Event "84th Armenian-HL-ch 2024"]
[Site "Yerevan"]
[Date "2024.01.17"]
[Round "6.2"]
[White "Gharibyan, Mamikon"]
[Black "Andriasian, Zaven"]
[Result "1/2-1/2"]
[ECO "D00"]
[WhiteElo "2504"]
[BlackElo "2581"]
[Annotator "TA"]
[PlyCount "34"]
[EventDate "2024.01.11"]
[EventType "tourn"]
[EventCountry "ARM"]
[SourceTitle "playchess.com"]
[Source "ChessBase"]
[SourceQuality "1"]
[TimeControl "40/5400+30:1800+30"]

{[%evp 9,34,0,0,0,6,14,15,7,2,0,0,0,0,0,0,0,7,0,33,23,22,-3,23,26,27,9,31]} 1. d4 {[%emt 1:31:00]} d5 {[%emt 1:31:00]} 2. Bf4 {[%emt 0:00:30]} Nf6 {[%emt 0:00:30]} 3. e3 {[%emt 0:00:30]} g6 {[%emt 0:00:30]} 4. Be2 {[%emt 0:00:30]} Bg7 {[%emt 0:00:30]} 5. h3 {[%emt 0:00:30]} c5 {[%emt 0:00:30]} 6. c3 {[%emt 0:00:30] D00: 1 d4 d5: Unusual lines.} Qb6 {[%emt 0:00:30]} 7. Qb3 {[%emt 0:00:30]} c4 {[%emt 0:00:30]} 8. Qa3 {[%emt 0:00:30]} Bf8 {[%emt 0:00:30][%cal Oe7e5] [#] aiming for ...e5!} 9. Qa4+ {[%emt 0:00:30]} Nc6 {[%emt 0:00:30]} 10. Qc2 {[%emt 0:00:30]} Bf5 {[%emt 0:00:30]} 11. Qc1 {[%emt 0:00:30]} Bg7 {[%emt 0:00:30]} 12. Nf3 {[%emt 0:00:30]} O-O {[%emt 0:00:30]} 13. Nbd2 {[%emt 0:00:30]} Qd8 {[%emt 0:00:30] [#]} 14. b3 $146 {[%emt 0:00:30]} ({Predecessor:} 14. O-O b5 15. Ne5 Qc8 16. Bf3 Rd8 17. Re1 h5 18. a4 a6 19. Nxc6 Qxc6 20. Be5 Rac8 21. axb5 axb5 22. Bxf6 Qxf6 {½-½ Carlsen,M (2839)-Vidit,S (2716) Chess.com Speed Chess blitz 2023 (1.16)}) 14... b5 {[%emt 0:00:30]} 15. a4 {[%emt 0:00:30]} a6 {[%emt 0:00:30]} 16. O-O {[%emt 0:00:00]} Qd7 {[%emt 0:00:00]} 17. Qb2 {[%emt 0:00:00]} Ne4 {[%emt 0:00:00] An uneventful encounter.   Weighted Error Value: White=0.05 (flawless) /Black=0.06 (flawless)} 1/2-1/2